bitfinex-derivatives/quotes_ETHF0:USTF0_20251031
["timestamp","ask_amount","ask_price","bid_price","bid_amount"]
[1761928998671,0.60392446,3854.2,3854.1,13.04416]
[1761928998976,0.46717,3854.8,3854.7,0.2271]
[1761928999176,0.46717,3854.8,3854.7,9.3661]
[1761928999378,1.07133948,3854.8,3854.7,9.3661]
[1761928999577,1.30413948,3854.8,3854.7,9.139]
[1761928999765,0.83696948,3854.8,3854.1,3.2078]
[1761928999970,0.60416948,3854.7,3854.2,9.139]
[1761929000175,0.60416948,3854.6,3854.2,9.139]
[1761929000370,0.60416948,3854.5,3854.4,0.2271]
[1761929000571,0.74376948,3854.5,3854.4,0.2271]
[1761929000770,0.74376948,3854.5,3854.2,9.139]
[1761929000967,0.1396,3854.5,3854.2,9.139]
[1761929001372,0.1396,3854.5,3854.4,0.2271]
[1761929001668,0.60361322,3854.5,3854.4,0.2271]
[1761929001869,0.60356285,3854.5,3854.2,0.46724]
[1761929002073,3.2078,3854.9,3854.4,0.2271]
[1761929002275,0.1396,3854.5,3854.4,0.2271]
[1761929002580,0.1396,3854.5,3854.3,9.136]
[1761929002581,0.97594536,3854.5,3854.3,9.136]
[1761929002779,0.83634536,3854.4,3854.3,9.136]
[1761929003075,0.83634536,3854.4,3854.1,3.2078]
[1761929003378,0.2328,3854.2,3853.7,3.2078]
[1761929003579,0.2328,3853.9,3853.8,9.135]
[1761929004479,0.1396,3854.0,3853.4,0.00263178]
[1761929004480,0.2328,3853.8,3853.4,0.00263178]
[1761929004681,0.60341415,3853.7,3853.5,9.135]
[1761929004983,3.3474,3854.0,3853.5,9.135]
[1761929005281,0.60350748,3853.9,3853.5,9.135]
[1761929005476,0.3724,3853.5,3853.4,0.00263178]
[1761929005681,0.3724,3853.5,3853.4,9.13763178]
[1761929005980,0.1396,3853.5,3853.4,9.36473178]
[1761929006676,0.97589809,3853.5,3853.4,0.00263178]
[1761929007080,1.44322809,3853.5,3853.4,0.00263178]
[1761929008585,1.44322809,3853.5,3853.4,1.78e-06]
[1761929008792,0.2328,3853.2,3851.5,0.1298]
[1761929008975,3.2078,3852.2,3851.8,3.163]
[1761929009170,0.60349809,3852.1,3851.8,3.163]
[1761929009380,3.2078,3852.2,3851.8,3.163]
[1761929009781,3.20990335,3852.2,3851.8,3.1648997]
[1761929010086,0.1396,3852.0,3851.8,0.0018997]
[1761929010382,0.1396,3852.0,3851.8,8.0808997]
[1761929010578,0.00210335,3852.2,3851.9,0.2271]
[1761929011177,0.46959335,3852.2,3852.1,0.2271]
[1761929011983,0.00210335,3852.2,3852.1,0.6946]
[1761929012185,0.00210335,3852.2,3852.1,0.2271]
[1761929012482,0.00210335,3852.2,3852.1,0.6946]
[1761929013679,0.00210335,3852.2,3852.1,0.2271]
[1761929013885,0.46959335,3852.2,3852.1,0.2271]
[1761929014070,0.46959335,3852.2,3852.1,9.8436]
[1761929014685,0.46959335,3852.2,3852.1,9.3761]
[1761929015877,0.46959335,3852.2,3852.1,0.2271]
[1761929016078,0.46959335,3852.2,3852.1,9.8436]
[1761929016273,0.46959335,3852.2,3852.1,9.3761]
[1761929016476,0.00210335,3852.2,3852.1,9.8436]
[1761929016780,0.46959335,3852.2,3852.1,9.8436]
[1761929017082,0.46959335,3852.2,3852.1,9.3761]
[1761929017386,0.46959335,3852.2,3852.1,9.8436]
[1761929017574,0.46959335,3852.2,3852.1,9.3761]
[1761929019073,0.00210335,3852.2,3852.1,9.8436]
[1761929021182,0.00210335,3852.2,3852.1,9.8346]
[1761929024285,0.00210335,3852.2,3852.1,9.3739]
[1761929024688,0.00210335,3852.2,3852.1,9.8414]
[1761929024990,0.00210335,3852.2,3852.1,9.3739]
[1761929025191,0.00210335,3852.2,3852.1,9.8414]
[1761929025985,0.00210335,3852.2,3852.1,9.3739]
[1761929026186,0.00210335,3852.2,3852.1,9.8414]
[1761929026582,0.22710335,3852.2,3852.1,9.3739]
[1761929026789,0.69459335,3852.2,3852.1,9.139]
[1761929027489,0.69252,3851.9,3851.8,0.0018997]
[1761929027688,0.69252,3851.9,3851.8,9.1408997]
[1761929028281,0.69252,3851.9,3851.8,0.0018997]
[1761929029185,0.1333,3851.0,3849.8,0.46777]
[1761929029486,3.2078,3850.2,3850.1,0.2349]
[1761929030178,3.2078,3850.2,3850.1,0.23681387]
[1761929030692,3.2078,3850.9,3850.1,0.23681387]
[1761929031293,3.2078,3850.9,3850.8,0.2349]
[1761929031983,3.90045,3850.9,3850.6,9.146]
[1761929032188,0.225,3850.7,3850.6,9.146]
[1761929032692,0.225,3850.7,3850.6,9.151]
[1761929032888,3.2078,3850.9,3850.6,9.3849]
[1761929033189,0.225,3850.7,3850.1,0.00191387]
[1761929033391,3.3411,3850.5,3850.2,9.151]
[1761929033689,3.3411,3850.5,3850.1,0.00191387]
[1761929033892,3.3411,3850.5,3850.2,9.151]
[1761929034088,3.2078,3850.9,3850.4,0.2349]
[1761929034399,0.46767,3850.8,3850.4,0.2349]
[1761929034694,0.46768,3850.7,3850.4,0.2349]
[1761929034890,0.1333,3850.5,3850.4,0.2349]
[1761929035088,3.3411,3850.5,3850.4,0.2349]
[1761929035290,3.5661,3850.5,3850.4,0.2349]
[1761929035492,3.5661,3850.5,3850.2,9.151]
[1761929036593,3.3411,3850.5,3850.4,0.2349]
[1761929037590,0.1333,3851.0,3850.4,0.2349]
[1761929037801,3.2078,3851.3,3851.2,0.2349]
[1761929037994,3.80775176,3851.3,3851.2,9.3799]
[1761929038697,4.03275176,3851.3,3851.2,9.149]
[1761929038898,4.50034176,3851.3,3851.2,9.149]
[1761929039090,3.80775176,3851.3,3851.2,9.3839]
[1761929039795,3.2078,3851.3,3851.2,9.3839]
[1761929040191,3.4328,3851.3,3851.2,9.149]
[1761929041187,3.2078,3851.3,3851.2,9.3839]
[1761929043493,3.4328,3851.3,3851.2,9.3839]
[1761929043696,3.4328,3851.3,3851.2,9.149]
[1761929043897,3.9004,3851.3,3851.2,9.149]
[1761929044807,3.4328,3851.3,3851.2,9.149]
[1761929044999,3.2078,3851.3,3851.2,9.85151]
[1761929045318,3.2078,3851.7,3851.6,0.2349]
[1761929045601,4.03291691,3851.7,3851.6,0.2349]
[1761929045802,0.46756,3851.6,3851.2,9.149]
[1761929046000,0.1333,3851.5,3851.2,9.6166]
[1761929046200,3.2078,3851.7,3851.6,0.2349]
[1761929046498,3.8080205,3851.7,3851.6,0.2349]
[1761929046704,3.8080205,3851.7,3851.6,0.70246]
[1761929046898,0.1333,3852.0,3851.9,0.2349]
[1761929047100,0.1333,3852.0,3851.7,9.142]
[1761929047101,1.42609525,3852.0,3851.7,9.142]
[1761929047303,0.60028525,3851.9,3851.7,9.142]
[1761929047604,0.225,3851.9,3851.7,9.142]
[1761929048101,0.69253,3851.8,3851.7,9.142]
[1761929048302,0.225,3851.6,3851.5,9.142]
[1761929048502,0.69256,3851.6,3851.5,9.142]
[1761929048907,0.225,3851.6,3851.5,9.142]
[1761929049209,0.225,3851.6,3850.9,0.70254]
[1761929049210,0.1333,3851.5,3850.9,0.70254]
[1761929049398,0.1333,3851.5,3850.8,3.2078]
[1761929049598,0.82593,3851.0,3850.9,9.146]
[1761929049799,0.3583,3851.0,3850.9,9.146]
[1761929050004,0.1333,3851.0,3850.9,9.3809]
[1761929050204,0.60094,3851.0,3850.9,9.3809]
[1761929050703,0.82594,3851.0,3850.9,9.146]
[1761929052099,3.2078,3851.2,3850.9,9.146]
[1761929052396,0.1333,3851.5,3851.4,0.2349]
[1761929052604,0.73416344,3851.5,3851.4,0.2349]
[1761929052797,1.20174344,3851.5,3851.4,0.2349]
[1761929052998,0.73416344,3851.5,3851.4,0.2349]
[1761929053204,0.2357,3850.8,3850.7,3.2078]
[1761929053502,0.1398,3850.5,3850.4,0.2281]
[1761929053803,0.74309866,3850.5,3850.4,0.2281]
[1761929053995,0.70343,3850.2,3849.7,0.02597639]
[1761929054202,4.51452866,3850.2,3849.7,0.02597639]
[1761929054402,12.51452866,3850.2,3849.7,0.02597639]
[1761929054602,0.1398,3849.5,3848.6,1.8]
[1761929054795,3.8109897,3849.4,3849.3,0.2281]
[1761929055108,3.2078,3849.8,3849.7,0.2281]
[1761929055403,0.1398,3850.5,3849.7,0.2281]
[1761929055404,3.2078,3850.3,3850.2,0.2281]
[1761929055609,0.60329466,3850.3,3850.2,0.2281]
[1761929055799,0.00302473,3850.3,3850.2,0.2281]
[1761929056605,0.00302473,3850.3,3850.2,9.4111]
[1761929056908,0.00302473,3850.3,3850.2,9.87883]
[1761929057110,0.00302473,3850.3,3850.2,9.4091]
[1761929059114,2.473e-05,3850.3,3850.2,17.4091]
[1761929059702,2.473e-05,3850.3,3850.2,9.4091]
[1761929061206,3.3476,3851.5,3850.2,9.181]
[1761929061405,0.60395446,3851.4,3850.5,3.2846]
[1761929061611,0.60395446,3851.3,3851.2,0.2289]
[1761929061912,3.3476,3851.5,3851.2,9.178]
[1761929062117,0.60417848,3851.4,3851.2,9.178]
[1761929062312,0.60417848,3851.3,3851.2,9.4069]
[1761929062511,3.2078,3851.9,3851.4,0.2289]
[1761929062702,0.60416637,3851.8,3851.7,0.2289]
[1761929062907,0.60416637,3851.8,3851.7,9.4049]
[1761929063306,3.21116399,3851.9,3851.8,0.69644]
[1761929064005,0.00336399,3851.9,3851.8,0.69644]
[1761929065417,0.00336399,3851.9,3851.8,3.90424]
[1761929066211,3.2078,3852.7,3852.6,0.2289]
[1761929066411,3.81135352,3852.7,3852.6,9.4059]
[1761929066817,3.81135352,3852.7,3852.6,9.177]
[1761929066818,4.04815352,3852.7,3852.6,9.177]
[1761929067224,3.44784493,3852.7,3852.6,9.17903676]
[1761929067845,4.0512052,3852.7,3852.6,0.00203676]
[1761929068715,3.8144052,3852.7,3852.6,0.23093676]
[1761929068919,3.21104493,3852.7,3852.6,0.23093676]
[1761929069527,3.44784493,3852.7,3852.6,0.00203676]
[1761929072311,4.0506491,3852.7,3852.6,0.00203676]
[1761929072918,3.44784493,3852.7,3852.6,0.00203676]
[1761929075023,3.91528493,3852.7,3852.6,0.00203676]
[1761929075233,3.44784493,3852.7,3852.6,0.00203676]
[1761929075734,3.91528493,3852.7,3852.6,0.00203676]
[1761929076319,4.51768802,3852.7,3852.6,0.00203676]
[1761929080522,0.60813,3852.0,3851.4,3.2078]
[1761929080721,0.2368,3851.7,3851.4,3.2078]
[1761929080929,0.2368,3851.7,3851.6,0.46757]
[1761929081130,0.2368,3851.7,3851.4,3.67539]
[1761929081324,0.1406,3851.5,3851.4,3.67539]
[1761929081529,0.1406,3851.5,3851.4,3.90429]
[1761929081828,0.46754,3851.9,3851.6,0.46757]
[1761929082027,0.46754,3851.9,3851.5,0.46759]
[1761929082229,0.1406,3851.5,3851.4,12.3615561]
[1761929082423,0.1406,3851.5,3851.4,13.0580561]
[1761929083016,0.60813,3852.0,3851.4,12.8291561]
[1761929083228,0.60813,3852.0,3851.7,0.46756]
[1761929083430,0.60813,3852.0,3851.8,0.46755]
[1761929083628,0.1406,3852.0,3851.9,0.2289]
[1761929083929,3.67532,3852.1,3852.0,0.2191]
[1761929084125,0.3556,3852.0,3851.9,0.46754]
[1761929084332,0.3556,3852.0,3851.8,0.46755]
[1761929084533,0.2183,3851.8,3851.7,0.46756]
[1761929084831,0.2183,3851.8,3851.7,0.68666]
[1761929085531,0.2183,3851.9,3851.8,0.46755]
[1761929086135,0.2183,3851.9,3851.8,0.68665]
[1761929086536,0.2183,3851.8,3851.7,0.46756]
[1761929086731,0.2183,3851.8,3851.7,9.61056]
[1761929086932,0.2183,3851.8,3851.7,9.61057]
[1761929087322,0.2183,3851.8,3851.7,0.46757]
[1761929087529,0.46755,3851.9,3851.6,9.3621]
[1761929087733,0.2183,3851.8,3851.7,0.46757]
[1761929088032,0.68586,3851.8,3851.7,0.46757]
[1761929088438,0.2183,3851.8,3851.7,0.46757]
[1761929088645,0.60484,3852.0,3851.7,0.68667]
[1761929088829,3.2078,3852.1,3852.0,0.68664]
[1761929089130,3.2078,3852.1,3852.0,0.81444]
[1761929089332,0.1406,3852.5,3852.4,0.46749]
[1761929089538,0.75443272,3852.5,3852.4,0.68659]
[1761929089830,0.2183,3852.3,3852.2,9.143]
[1761929090034,0.83213272,3852.3,3852.2,9.61051]
[1761929090529,0.83213272,3852.3,3852.2,9.143]
[1761929091036,0.83213272,3852.3,3852.2,0.46751]
[1761929091239,0.83213272,3852.3,3852.2,8.78951]
[1761929091534,0.83213272,3852.3,3851.0,1.863595]
[1761929091535,0.2183,3851.8,3851.0,1.863595]
[1761929091735,0.4677,3850.7,3850.5,0.1325]
[1761929091925,3.82228895,3850.6,3850.5,0.1325]
[1761929092630,3.82228895,3850.6,3850.5,0.13536668]
[1761929095731,3.82228895,3850.6,3850.5,0.35446668]
[1761929095934,3.2078,3850.6,3850.5,0.35446668]
[1761929097627,3.2078,3850.6,3850.5,0.13536668]
[1761929098235,3.2078,3850.6,3850.5,0.35446668]
[1761929100235,3.6755,3850.6,3850.5,0.13536668]
[1761929101439,3.6755,3850.6,3850.5,0.00286668]
[1761929101645,4.30072223,3850.6,3850.5,0.00286668]
[1761929101941,0.46777,3850.1,3850.0,0.1278]
[1761929102139,3.67557,3850.1,3850.0,0.1278]
[1761929103041,3.67557,3850.1,3850.0,0.13042681]
[1761929103344,3.67557,3850.1,3850.0,0.34952681]
[1761929103835,3.2078,3850.1,3850.0,0.81730681]
[1761929104244,3.2078,3850.5,3850.4,0.2191]
[1761929104839,0.46777,3850.1,3850.0,0.13042681]
[1761929105042,3.67557,3850.1,3850.0,0.13042681]
[1761929105437,3.67557,3850.1,3850.0,0.00262681]
[1761929105638,4.3006559,3850.1,3850.0,0.00262681]
[1761929108343,12.3006559,3850.1,3850.0,0.00262681]
[1761929108550,0.46783,3849.6,3849.5,0.1325]
[1761929108739,3.67563,3849.6,3849.5,0.1325]
[1761929109139,0.46789,3849.1,3849.0,0.1325]
[1761929109348,0.46795,3848.6,3848.0,0.60052]
[1761929109548,3.2078,3848.6,3848.0,0.1325]
[1761929109851,3.2078,3848.6,3848.5,0.1350552]
[1761929111042,3.2078,3848.6,3848.5,0.3541552]
[1761929111237,0.00310276,3849.1,3848.9,0.2191]
[1761929111238,3.2078,3849.0,3848.9,0.2191]
[1761929111442,3.2078,3849.0,3848.5,0.1350552]
[1761929111842,0.46793,3848.7,3848.5,0.1350552]
[1761929112046,3.2078,3848.6,3848.5,0.1350552]
[1761929112646,3.2078,3848.6,3848.5,0.3541552]
[1761929115248,3.2078,3849.0,3848.5,0.1350552]
[1761929115745,0.46794,3848.7,3848.5,0.1350552]
[1761929116042,3.2078,3848.6,3848.5,0.0025552]
[1761929116436,3.2078,3848.6,3848.5,0.3708552]
[1761929117446,0.46791,3848.9,3848.8,0.2372]
[1761929117643,0.46792,3848.8,3848.5,0.1336552]
[1761929118039,3.67571,3848.9,3848.5,0.1336552]
[1761929118246,0.46793,3848.7,3848.5,0.1336552]
[1761929118745,3.67571,3848.9,3848.5,0.1336552]
[1761929118955,3.2078,3848.9,3848.5,0.1336552]
[1761929119357,0.62575253,3848.8,3848.5,0.1336552]
[1761929119554,3.2078,3848.9,3848.5,0.1336552]
[1761929119752,0.46793,3848.7,3848.5,0.1336552]
[1761929120370,0.62641849,3848.6,3848.5,0.1336552]
[1761929121750,0.62641849,3848.6,3848.5,0.3708552]
[1761929122456,0.62641849,3848.6,3848.5,0.1336552]
[1761929122651,0.62641849,3848.6,3848.5,0.3635552]
[1761929125354,1.09435849,3848.6,3848.5,0.3635552]
[1761929125554,0.62641849,3848.6,3848.5,0.3635552]
[1761929125755,0.62641849,3848.6,3848.5,0.8315052]
[1761929126847,0.46792,3848.8,3848.7,0.2299]
[1761929127050,1.09542494,3848.8,3848.7,0.2299]
[1761929127555,0.46794,3848.6,3848.5,0.1336552]
[1761929127754,1.09544494,3848.6,3848.5,0.1336552]
[1761929128354,1.09544494,3848.6,3848.5,0.0025552]
[1761929128956,1.09544494,3848.6,3848.5,0.1327552]
[1761929130454,1.09544494,3848.6,3848.5,0.3626552]
[1761929130850,1.09544494,3848.6,3848.5,0.1327552]
[1761929132656,1.09544494,3848.6,3848.5,0.0025552]
[1761929133159,2.48678965,3848.6,3848.5,0.0025552]
[1761929133455,0.468,3848.1,3848.0,0.1325]
[1761929133661,0.468,3848.1,3847.5,0.1325]
[1761929133662,0.46806,3847.6,3847.5,0.1325]
[1761929133856,4.30336494,3847.6,3847.5,0.1325]
[1761929134561,4.30336494,3847.6,3847.5,0.00248476]
[1761929134762,5.69596215,3847.6,3847.5,0.00248476]
[1761929135459,5.22790215,3847.6,3847.5,0.13268476]
[1761929135654,3.83530494,3847.6,3847.5,0.13268476]
[1761929135858,3.83530494,3847.6,3847.5,0.36258476]
[1761929136760,3.83530494,3847.6,3847.5,0.83065476]
[1761929137548,0.62750494,3847.6,3847.5,0.83065476]
[1761929137749,3.2078,3848.0,3847.9,0.2299]
[1761929137955,3.83716789,3848.0,3847.9,0.2299]
[1761929138151,3.83716789,3848.0,3847.9,0.69793]
[1761929138752,0.62936789,3848.0,3847.9,0.69793]
[1761929139458,3.2078,3848.4,3847.6,4.37795]
[1761929139459,3.2078,3848.4,3848.3,0.69788]
[1761929141265,3.67572,3848.8,3848.5,0.59815]
[1761929141657,3.67572,3848.8,3848.7,0.2299]
[1761929141858,3.4277,3848.8,3848.7,0.2299]
[1761929142053,3.2078,3848.8,3848.7,0.69783]
[1761929144862,0.00310276,3849.1,3849.0,0.84029]
[1761929145860,0.00310276,3849.1,3849.0,0.3724]
[1761929146064,0.70334,3848.6,3848.5,0.1302]
[1761929146258,0.2354,3848.3,3848.2,0.46798]
[1761929148669,0.70335,3848.5,3848.4,0.46796]
[1761929148865,3.2078,3848.6,3848.0,0.1302]
[1761929149074,3.2078,3848.2,3848.0,0.1302]
[1761929149669,0.2354,3847.7,3847.5,0.13268476]
[1761929149868,0.2354,3847.7,3847.6,0.46806]
[1761929150862,3.2078,3847.8,3847.7,0.70395]
[1761929151060,3.2078,3848.2,3848.1,0.468]
[1761929151365,3.2078,3848.6,3848.5,0.46795]
[1761929151565,4.30030537,3848.6,3848.5,0.3724]
[1761929151760,4.53570537,3848.6,3848.5,0.1365]
[1761929152071,0.1121,3848.5,3847.6,3.2078]
[1761929152271,0.2354,3848.1,3848.0,0.46801]
[1761929152463,0.7034,3848.1,3848.0,0.46801]
[1761929152768,0.2354,3848.1,3848.0,0.46801]
[1761929153159,3.67579,3848.2,3848.0,0.60451]
[1761929153360,3.2078,3848.2,3848.1,0.7039]
[1761929154057,3.67579,3848.2,3848.1,0.7039]
[1761929154568,3.2078,3848.2,3848.1,0.7039]
[1761929155466,0.46796,3848.5,3848.4,0.46796]
[1761929155672,0.46797,3848.4,3848.3,0.2359]
[1761929155971,0.70337,3848.4,3848.3,0.2359]
[1761929156165,0.468,3848.2,3848.1,0.468]
[1761929156364,0.468,3848.2,3848.1,0.7039]
[1761929156560,0.7034,3848.2,3848.1,0.468]
[1761929156870,0.46798,3848.3,3848.2,0.70388]
[1761929157775,3.2078,3848.7,3848.5,0.60444]
[1761929157971,1.09223261,3848.6,3848.5,0.60444]
[1761929158675,1.09223261,3848.6,3848.5,0.84034]
[1761929159670,0.62429261,3848.6,3848.5,0.84034]
[1761929160174,1.09223261,3848.6,3848.5,0.84034]
[1761929160376,1.09223261,3848.6,3848.5,0.3724]
[1761929160676,0.2354,3847.7,3847.6,0.46806]
[1761929161172,0.70346,3847.6,3847.5,0.00248476]
[1761929162567,0.2354,3847.6,3847.5,0.47056476]
[1761929163070,0.70346,3847.6,3847.5,0.00248476]
[1761929163470,1.3274538,3847.6,3847.5,0.00248476]
[1761929163871,0.2354,3846.8,3846.5,0.1365]
[1761929164176,0.1096,3847.5,3846.9,0.46815]
[1761929164177,0.2354,3847.0,3846.9,0.46815]
[1761929164377,0.46815,3846.9,3846.6,0.46819]
[1761929164582,1.17029,3847.2,3846.6,0.46819]
[1761929164769,1.17029,3847.2,3846.4,9.168]
[1761929164770,0.70358,3846.7,3846.4,9.168]
[1761929165078,0.4682,3846.5,3846.4,9.168]
[1761929165279,0.4682,3846.5,3846.4,9.17097689]
[1761929165480,3.9114,3846.5,3846.4,9.17097689]
[1761929165676,4.0235,3846.5,3846.4,0.00297689]
[1761929166376,3.9114,3846.5,3846.4,0.00297689]
[1761929166578,4.0235,3846.5,3846.4,0.00297689]
[1761929167679,0.2354,3845.6,3845.3,0.46834043]
[1761929167874,0.2354,3845.4,3845.3,0.46834043]
[1761929168273,3.2078,3845.8,3845.3,4.3e-07]
[1761929168471,3.67613,3845.4,3845.3,4.3e-07]
[1761929168968,3.2078,3845.4,3845.3,4.3e-07]
[1761929169167,3.44541876,3845.4,3845.3,0.0031133]
[1761929169670,0.00221876,3845.4,3845.3,0.2390133]
[1761929170077,3.2078,3846.3,3846.0,0.1365]
[1761929170283,0.2354,3846.2,3846.1,0.46824]
[1761929170980,0.2354,3846.2,3846.0,0.1365]
[1761929171184,0.2354,3845.9,3845.8,9.175]
[1761929171481,0.2354,3845.6,3845.5,0.46831]
[1761929171682,3.67608,3845.9,3845.5,0.1365]
[1761929171875,0.2354,3845.8,3845.7,0.46829]
[1761929172077,3.2078,3845.9,3845.8,0.2359]
[1761929172285,3.2078,3845.9,3845.7,0.46829]
[1761929172776,3.2078,3845.9,3845.5,0.1365]
[1761929172777,3.2078,3845.9,3845.5,0.60481]
[1761929173084,0.2354,3845.4,3845.3,0.0031133]
[1761929173677,0.0838,3844.8,3844.0,0.1337]
[1761929173992,3.2916,3844.8,3844.0,0.1337]
[1761929174674,3.2916,3844.8,3844.7,0.02892746]
[1761929174871,3.2078,3844.8,3844.7,0.02892746]
[1761929175083,3.2078,3845.2,3844.7,0.02892746]
[1761929175282,3.2078,3846.0,3845.5,0.1337]
[1761929175673,3.2916,3845.6,3845.1,0.46836]
[1761929175874,3.2916,3845.6,3845.5,0.1337]
[1761929176279,3.2078,3846.0,3845.8,0.46827]
[1761929176588,3.2078,3846.0,3845.9,0.2148]
[1761929177685,0.0838,3845.9,3844.2,1.17117]
[1761929177892,0.0838,3845.9,3844.9,9.235]
[1761929178086,0.55207,3845.9,3845.5,0.1337]
[1761929178388,3.2078,3846.0,3845.6,0.4683]
[1761929178590,3.2078,3846.0,3845.7,0.46828]
[1761929178780,3.2078,3846.0,3845.9,0.68307]
[1761929179482,0.00258005,3846.2,3846.1,0.68304]
[1761929180491,0.00258005,3846.2,3846.1,0.2148]
[1761929181487,0.00258005,3846.2,3846.1,9.4438]
[1761929183186,0.00258005,3846.2,3846.1,0.2148]
[1761929183591,0.00258005,3846.2,3846.1,9.4408]
[1761929185984,0.55224,3846.1,3846.0,0.1337]
[1761929186390,0.00258005,3846.2,3846.0,0.1337]
[1761929186584,0.47081005,3846.2,3846.0,0.1337]
[1761929186789,0.00258005,3846.2,3846.1,0.2347]
[1761929186988,0.47082005,3846.2,3846.1,0.2347]
[1761929188091,0.00258005,3846.2,3846.1,0.2347]
[1761929189479,3.67595,3846.9,3846.8,0.2347]
[1761929189683,3.83076776,3846.9,3846.8,0.2347]
[1761929189892,0.46811,3847.2,3847.1,0.2347]
[1761929190193,3.2078,3847.3,3847.2,0.2347]
[1761929190489,0.46795,3848.5,3848.4,0.2347]
[1761929190682,0.46795,3848.5,3848.4,0.129]
[1761929190876,1.0942898,3848.5,3848.4,0.13208196]
[1761929191077,0.0031087,3848.5,3848.4,0.36678196]
[1761929191687,3.2078,3849.2,3849.1,0.2347]
[1761929191876,3.2078,3849.6,3849.2,0.46787]
[1761929192077,3.2078,3849.6,3849.1,9.22]
[1761929192692,3.2078,3849.2,3848.4,0.60003196]
[1761929192884,0.46793,3848.7,3848.5,9.224]
[1761929193083,0.46789,3849.0,3848.6,9.226]
[1761929193283,0.46792,3848.8,3848.6,9.226]
[1761929193485,0.46791,3848.9,3848.6,9.226]
[1761929193787,0.46789,3849.1,3849.0,0.129]
[1761929193987,3.2078,3849.2,3849.0,0.129]
[1761929194183,0.46786,3849.3,3849.1,9.226]
[1761929194685,0.46785,3849.4,3849.1,9.69387]
[1761929194885,0.46786,3849.3,3849.1,9.226]
[1761929195785,3.21104148,3849.6,3849.0,0.129]
[1761929195786,0.46788,3849.1,3849.0,0.129]
[1761929195987,0.0865,3848.9,3848.8,9.225]
[1761929196182,0.46789,3849.0,3848.8,9.225]
[1761929196692,0.46794,3848.6,3848.4,0.13208196]
[1761929196896,0.46793,3848.7,3848.4,9.35508196]
[1761929197091,3.2078,3849.1,3849.0,0.129]
[1761929197296,3.67568,3849.1,3849.0,0.129]
[1761929197491,3.2078,3849.1,3849.0,9.352]
[1761929197797,3.2943,3849.1,3849.0,9.352]
[1761929198190,3.2943,3849.1,3849.0,0.129]
[1761929198391,3.2078,3849.1,3848.4,9.35408196]
[1761929198586,3.67568,3849.1,3849.0,0.129]
[1761929198783,3.2078,3849.1,3849.0,0.129]
[1761929199084,3.2078,3849.1,3849.0,0.3637]
[1761929200097,0.46786,3849.3,3849.0,0.83158]
[1761929200294,0.46786,3849.3,3849.0,0.3637]
[1761929200492,0.00324148,3849.6,3849.2,0.2347]
[1761929200694,0.46785,3849.4,3849.2,0.46786]
[1761929200884,0.46785,3849.4,3849.3,0.2347]
[1761929201085,0.46787,3849.2,3849.1,0.2347]
[1761929201296,0.46785,3849.4,3849.2,0.46786]
[1761929201594,0.46786,3849.3,3849.2,0.2347]
[1761929201793,0.00324148,3849.6,3849.5,0.2347]
[1761929202096,0.00324148,3849.6,3849.5,0.3637]
[1761929203792,0.00324148,3849.6,3849.5,9.5847]
[1761929204186,3.2078,3850.1,3850.0,0.3638]
[1761929204384,3.2078,3850.1,3850.0,9.3557]
[1761929204689,3.2078,3850.1,3850.0,9.5838]
[1761929205097,3.67814466,3850.1,3850.0,9.5838]
[1761929205293,3.21038466,3850.1,3850.0,10.05157]
[1761929205488,3.67814466,3850.1,3850.0,9.5838]
[1761929205888,3.21038466,3850.1,3850.0,10.05157]
[1761929206396,3.67814466,3850.1,3850.0,9.5838]
[1761929206696,3.67814466,3850.1,3850.0,10.05157]
[1761929207099,3.21038466,3850.1,3850.0,10.05157]
[1761929207596,3.67814466,3850.1,3850.0,10.05157]
[1761929207800,3.21038466,3850.1,3850.0,10.05157]
[1761929208500,0.00258466,3850.1,3850.0,10.05157]
[1761929208704,3.2078,3850.9,3850.8,0.69577]
[1761929209091,3.2078,3851.9,3851.5,0.1357]
[1761929209293,24.15895,3854.1,3852.2,0.46749]
[1761929209294,3.2078,3852.4,3852.2,0.46749]
[1761929209496,1.1684,3853.4,3852.2,0.46749]
[1761929209497,0.46747,3852.5,3852.3,0.2281]
[1761929209804,0.00181964,3852.5,3852.3,0.00319224]
[1761929209990,0.46928964,3852.5,3852.3,0.47068224]
[1761929210192,0.46928964,3852.5,3852.3,0.00319224]
[1761929210800,0.46928964,3852.5,3852.3,0.47068224]
[1761929211298,0.0919,3852.4,3852.3,0.00319224]
[1761929211806,0.55944,3851.9,3851.8,9.217]
[1761929212098,0.46758,3851.6,3851.5,0.1357]
[1761929212694,3.2078,3852.0,3851.5,0.83139]
[1761929212890,0.46757,3851.7,3851.6,0.2281]
[1761929213095,0.46757,3851.7,3851.5,0.13886811]
[1761929213401,3.2078,3852.4,3851.5,0.13886811]
[1761929213596,3.2078,3852.4,3852.1,0.46752]
[1761929213793,0.46752,3852.2,3852.0,0.1357]
[1761929214194,0.46752,3852.2,3852.0,0.60323]
[1761929214492,0.46752,3852.2,3852.0,0.1357]
[1761929214894,0.0919,3852.1,3852.0,0.1357]
[1761929215301,0.46752,3852.2,3852.0,0.1357]
[1761929215497,0.0919,3852.1,3852.0,0.1357]
[1761929215805,0.55943,3852.0,3851.9,9.224]
[1761929215996,3.76723,3852.0,3851.9,9.224]
[1761929216398,3.76723,3852.0,3851.5,0.47075811]
[1761929216399,0.0919,3851.6,3851.5,0.47075811]
[1761929216598,0.46757,3851.7,3851.5,0.00316811]
[1761929216799,0.46757,3851.7,3851.5,0.47075811]
[1761929216995,0.46757,3851.7,3851.5,0.00316811]
[1761929217296,0.46757,3851.8,3851.5,0.00316811]
[1761929217502,0.46755,3851.9,3851.8,0.2281]
[1761929217703,0.46757,3851.7,3851.5,0.47075811]
[1761929217908,0.46756,3851.8,3851.5,0.47075811]